bitfinex/quotes_ETHUSD_20250715
["timestamp","ask_amount","ask_price","bid_price","bid_amount"]
[1752538605508,0.02492759,3007.8,3007.7,0.1656]
[1752538605708,5.05792759,3007.8,3007.7,0.1656]
[1752538605943,8.38261673,3007.8,3007.7,0.1656]
[1752538606145,8.35768914,3007.8,3007.7,0.1656]
[1752538606448,5.033,3007.8,3007.7,0.1656]
[1752538606841,8.35768914,3007.8,3007.7,0.1656]
[1752538607778,5.033,3007.8,3007.7,0.1656]
[1752538607953,5.05792759,3007.8,3007.7,0.1656]
[1752538609157,8.38261673,3007.8,3007.7,0.1656]
[1752538609359,8.35768914,3007.8,3007.7,0.1656]
[1752538610034,5.033,3007.8,3007.7,0.1656]
[1752538610231,5.05792759,3007.8,3007.7,0.1656]
[1752538610559,8.38261673,3007.8,3007.7,0.1656]
[1752538610763,8.35768914,3007.8,3007.7,0.1656]
[1752538611731,16.05048879,3007.8,3007.7,0.1656]
[1752538612570,3.32491022,3007.6,3007.5,1.48754928]
[1752538612873,19.18323781,3007.6,3007.5,1.48754928]
[1752538613035,19.32391022,3007.6,3007.5,1.48754928]
[1752538613230,20.93822763,3007.6,3007.5,1.48754928]
[1752538618474,15.90522763,3007.6,3007.5,1.48754928]
[1752538618873,20.93822763,3007.6,3007.5,1.48754928]
[1752538619535,15.90522763,3007.6,3007.5,1.48754928]
[1752538619737,20.93822763,3007.6,3007.5,1.48754928]
[1752538620037,20.93822763,3007.6,3007.5,0.001]
[1752538622674,4.14765248,3007.2,3006.5,0.8283]
[1752538622975,5.05792759,3007.1,3006.9,0.1656]
[1752538623144,3.32557366,3007.0,3006.9,0.1656]
[1752538623345,3.32612672,3006.5,3006.4,0.001]
[1752538623544,8.38405431,3006.5,3006.4,0.001]
[1752538623731,8.35912672,3006.5,3006.4,0.1666]
[1752538627824,9.97344413,3006.5,3006.4,0.1666]
[1752538628121,9.97344413,3006.5,3006.4,0.001]
[1752538630991,4.94044413,3006.5,3006.4,0.001]
[1752538631188,8.38505431,3006.5,3006.4,0.001]
[1752538631391,8.36012672,3006.5,3006.4,0.001]
[1752538635107,10.0,3006.7,3006.4,0.001]
[1752538635310,15.034,3006.6,3006.5,0.1656]
[1752538635514,0.8295,3007.1,3006.5,0.1656]
[1752538635515,7.978,3007.5,3006.5,0.7568]
[1752538635680,3.32562897,3007.0,3006.5,4.24846806]
[1752538635877,15.034,3006.9,3006.8,0.1656]
[1752538637112,10.0,3006.9,3006.8,0.1656]
[1752538637283,15.034,3006.9,3006.8,0.1656]
[1752538637682,18.35968425,3006.9,3006.8,0.1656]
[1752538638312,15.034,3006.9,3006.8,0.1656]
[1752538639130,10.0,3006.9,3006.8,0.1656]
[1752538639330,15.034,3006.9,3006.8,0.1656]
[1752538639507,18.35968425,3006.9,3006.8,0.1656]
[1752538639998,10.0,3006.9,3006.8,0.1656]
[1752538640224,5.034,3006.9,3006.8,0.1656]
[1752538640632,0.02492759,3007.1,3006.9,0.7634]
[1752538640832,5.034,3007.0,3006.9,0.7634]
[1752538640997,5.034,3007.0,3006.9,0.929]
[1752538641399,0.02492759,3007.2,3007.0,3.32547745]
[1752538641651,7.982,3007.5,3007.1,0.1656]
[1752538641940,15.05892759,3007.4,3007.1,3.49102465]
[1752538642098,5.034,3007.3,3007.1,3.3254042]
[1752538642302,5.034,3007.3,3007.0,3.32551055]
[1752538642502,5.034,3007.3,3007.2,0.1656]
[1752538642925,5.034,3007.3,3007.2,3.49095248]
[1752538643441,7.982,3007.5,3007.3,4.09264191]
[1752538643643,5.034,3007.4,3007.3,4.09264191]
[1752538644053,5.034,3007.4,3007.3,0.7674]
[1752538644350,5.034,3007.4,3007.3,0.933]
[1752538648076,7.982,3007.5,3007.3,0.933]
[1752538648280,8.38405893,3007.4,3007.3,0.1656]
[1752538648592,12.43775757,3007.5,3007.3,0.1656]
[1752538648795,5.05892759,3007.4,3007.3,0.1656]
[1752538649507,5.034,3007.4,3007.3,0.1656]
[1752538650679,7.982,3007.5,3007.3,0.1656]
[1752538651044,5.034,3007.4,3007.3,0.1656]
[1752538651257,5.034,3007.4,3007.3,3.49084191]
[1752538651656,7.982,3007.5,3007.3,3.49084191]
[1752538651862,7.982,3007.5,3007.4,3.32513134]
[1752538652064,13.015,3007.5,3007.4,4.15443134]
[1752538652576,7.982,3007.5,3007.4,4.15443134]
[1752538652782,13.015,3007.5,3007.4,4.15443134]
[1752538652964,0.002,3007.5,3007.4,6.12289536]
[1752538653171,5.037,3007.5,3007.4,6.12289536]
[1752538653344,5.037,3007.5,3007.4,6.08964405]
[1752538653966,0.002,3007.5,3007.4,6.08964405]
[1752538654280,5.037,3007.5,3007.4,6.08964405]
[1752538654685,0.002,3007.5,3007.4,6.08964405]
[1752538654986,5.037,3007.5,3007.4,6.08964405]
[1752538656151,5.037,3007.5,3007.4,6.33956261]
[1752538656818,0.002,3007.5,3007.4,6.33956261]
[1752538661002,0.002,3007.5,3007.4,6.34056261]
[1752538663699,0.002,3007.5,3007.4,11.10056261]
[1752538665549,0.002,3007.5,3007.4,10.55056261]
[1752538669615,0.002,3007.5,3007.4,5.79056261]
[1752538684926,0.002,3007.5,3007.4,6.34056261]
[1752538687353,0.002,3007.5,3007.4,11.10056261]
[1752538692194,0.002,3007.5,3007.4,10.27126261]
[1752538698710,0.002,3007.5,3007.4,8.3360499]
[1752538698877,0.002,3007.5,3007.4,5.01091856]
[1752538699216,0.002,3007.5,3007.4,0.25091856]
[1752538699422,0.002,3007.5,3007.4,3.5760499]
[1752538701326,0.002,3007.5,3007.4,0.25091856]
[1752538702595,0.002,3007.5,3007.4,0.001]
[1752538707133,0.002,3007.5,3007.4,3.32613134]
[1752538707638,0.002,3007.5,3007.4,0.001]
[1752538707839,0.002,3007.5,3007.4,3.32613134]
[1752538708640,0.002,3007.5,3007.4,3.35938265]
[1752538708843,5.033,3007.5,3007.4,4.06939419]
[1752538709141,5.033,3007.5,3007.4,3.32613134]
[1752538710631,0.002,3007.5,3007.4,3.32613134]
[1752538710818,5.033,3007.5,3007.4,3.32613134]
[1752538711404,5.7928,3007.5,3007.4,0.001]
[1752538712206,5.7928,3007.5,3007.4,3.32613134]
[1752538712618,5.7928,3007.5,3007.4,0.001]
[1752538713340,5.7928,3007.5,3007.4,3.32613134]
[1752538713826,5.033,3007.5,3007.4,3.32613134]
[1752538715338,0.002,3007.5,3007.4,4.03281727]
[1752538715540,5.033,3007.5,3007.4,4.58281727]
[1752538715716,0.002,3007.5,3007.4,5.38451727]
[1752538716850,8.8041,3008.3,3008.1,3.32435756]
[1752538717016,7.978,3008.3,3008.2,3.32424705]
[1752538717211,7.978,3008.3,3008.2,3.48984705]
[1752538717441,13.009,3008.3,3008.2,3.48984705]
[1752538718126,13.009,3008.3,3008.2,0.1656]
[1752538718658,13.009,3008.3,3008.2,3.48984705]
[1752538719925,13.009,3008.3,3008.2,0.1656]
[1752538722353,5.033,3008.3,3008.2,0.1656]
[1752538725252,5.033,3008.3,3008.2,3.48984705]
[1752538725953,5.032,3008.3,3008.2,0.1656]
[1752538726655,0.002,3008.3,3008.2,3.48984705]
[1752538726861,5.032,3008.3,3008.2,4.17127625]
[1752538727062,0.002,3008.3,3008.2,16.00184818]
[1752538727365,5.032,3008.3,3008.2,16.00184818]
[1752538727918,5.032,3008.3,3008.2,10.27767625]
[1752538729434,0.002,3008.3,3008.2,10.27767625]
[1752538733776,5.031,3008.5,3008.4,4.65062606]
[1752538733777,0.002,3008.5,3008.4,4.65062606]
[1752538733949,0.002,3008.5,3008.4,6.28204904]
[1752538734147,0.002,3008.5,3008.4,6.44764904]
[1752538735437,0.002,3008.5,3008.4,6.41440878]
[1752538736840,0.002,3008.5,3008.4,7.8854394]
[1752538737540,0.002,3008.5,3008.4,7.88543933]
[1752538742989,0.002,3008.5,3008.4,3.23481327]
[1752538743176,0.002,3008.5,3008.4,1.63663055]
[1752538745319,3.32591557,3008.5,3008.4,1.63663055]
[1752538745824,0.002,3008.5,3008.4,1.63663055]
[1752538746321,3.32591557,3008.5,3008.4,1.63663055]
[1752538747488,4.15631557,3008.5,3008.4,1.63663055]
[1752538747800,20.62849961,3008.5,3008.4,1.47103055]
[1752538748495,19.8804875,3008.5,3008.4,1.47103055]
[1752538750001,24.9084875,3008.5,3008.4,1.47103055]
[1752538750689,19.18431557,3008.5,3008.4,1.47103055]
[1752538750899,14.15631557,3008.5,3008.4,1.47103055]
[1752538751212,19.18431557,3008.5,3008.4,1.47103055]
[1752538751696,5.8604,3008.5,3008.4,1.47103055]
[1752538751899,0.002,3008.5,3008.4,1.47103055]
[1752538752105,5.03,3008.5,3008.4,5.27457304]
[1752538754722,5.03,3008.5,3008.4,1.95054698]
[1752538754890,5.03,3008.5,3008.4,1.47103055]
[1752538757090,5.03,3008.5,3008.4,4.79505661]
[1752538757730,5.03,3008.5,3008.4,4.96065661]
[1752538758325,0.002,3008.5,3008.4,4.96065661]
[1752538758516,5.03,3008.5,3008.4,4.99389687]
[1752538758712,5.03,3008.5,3008.4,5.79245924]
[1752538760831,5.03,3008.5,3008.4,2.46843318]
[1752538761041,5.03,3008.5,3008.4,1.63663055]
[1752538761837,5.03,3008.5,3008.4,4.96065661]
[1752538762000,5.03,3008.5,3008.4,1.63663055]
[1752538762619,5.03,3008.5,3008.4,4.96065661]
[1752538764133,5.03,3008.5,3008.4,1.63663055]
[1752538765455,5.03,3008.5,3008.4,4.96065661]
[1752538766224,5.03,3008.5,3008.4,6.26514503]
[1752538767954,5.03,3008.5,3008.4,2.94211897]
[1752538768253,5.03,3008.5,3008.4,4.96165661]
[1752538772283,0.002,3008.5,3008.4,4.96165661]
[1752538772576,5.03,3008.5,3008.4,4.99489687]
[1752538772883,0.002,3008.5,3008.4,6.31879687]
[1752538773053,0.002,3008.5,3008.4,8.33150643]
[1752538773301,0.002,3008.5,3008.4,8.29826617]
[1752538775475,0.002,3008.5,3008.4,6.82723562]
[1752538776084,0.002,3008.5,3008.4,11.58723562]
[1752538779572,0.002,3008.5,3008.4,5.50333562]
[1752538779772,0.002,3008.5,3008.4,3.49062606]
[1752538780594,5.029,3008.5,3008.4,3.49062606]
[1752538781792,5.029,3008.5,3008.4,0.1666]
[1752538784067,8.35291557,3008.5,3008.4,0.1666]
[1752538784908,5.029,3008.5,3008.4,0.1666]
[1752538785206,8.35291557,3008.5,3008.4,0.1666]
[1752538785410,9.13911557,3008.5,3008.4,0.1666]
[1752538788072,10.38540847,3008.5,3008.4,0.1666]
[1752538792907,5.35840847,3008.5,3008.4,0.1666]
[1752538793109,9.16404316,3008.5,3008.4,0.1666]
[1752538793344,9.13911557,3008.5,3008.4,0.1666]
[1752538795517,4.11211557,3008.5,3008.4,0.1666]
[1752538795712,9.16404316,3008.5,3008.4,0.1666]
[1752538795912,9.13911557,3008.5,3008.4,0.1666]
[1752538796649,5.8152,3008.5,3008.4,0.1666]
[1752538797476,9.16404316,3008.5,3008.4,0.1666]
[1752538797679,9.13911557,3008.5,3008.4,0.1666]
[1752538799682,4.11211557,3008.5,3008.4,0.1666]
[1752538799881,9.16404316,3008.5,3008.4,0.1666]
[1752538800068,9.13911557,3008.5,3008.4,0.1666]
[1752538806891,4.11211557,3008.5,3008.4,0.1666]
[1752538807194,9.16404316,3008.5,3008.4,0.1666]
[1752538807345,9.13911557,3008.5,3008.4,0.1666]
[1752538808159,4.11211557,3008.5,3008.4,0.1666]
[1752538808484,9.16404316,3008.5,3008.4,0.1666]
[1752538808698,9.13911557,3008.5,3008.4,0.1666]
[1752538810191,5.029,3008.5,3008.4,0.1666]
[1752538811091,0.002,3008.5,3008.4,0.66279749]
[1752538811307,5.029,3008.5,3008.4,0.66279749]
[1752538811483,5.029,3008.5,3008.4,3.98682355]
[1752538813088,0.002,3008.5,3008.4,3.98682355]
[1752538813383,5.029,3008.5,3008.4,3.98682355]
[1752538813762,5.029,3008.5,3008.4,0.66279749]
[1752538814989,5.029,3008.5,3008.4,3.98682355]
[1752538816165,5.029,3008.5,3008.4,0.66279749]
[1752538816360,5.029,3008.5,3008.4,3.98682355]
[1752538819902,5.029,3008.5,3008.4,0.66279749]
[1752538820109,5.029,3008.5,3008.4,0.1666]
[1752538820294,5.029,3008.5,3008.4,3.49062606]
[1752538820496,5.029,3008.5,3008.4,0.1666]
[1752538824474,8.35291557,3008.5,3008.4,0.1666]
[1752538827837,5.029,3008.5,3008.4,0.1666]
[1752538827988,8.37784316,3008.5,3008.4,0.1666]
[1752538828324,8.35291557,3008.5,3008.4,0.1666]
[1752538840757,5.029,3008.5,3008.4,0.1666]
[1752538841081,5.028,3008.5,3008.4,0.1666]
[1752538845563,5.05292759,3008.5,3008.4,0.1666]
[1752538846482,8.37684316,3008.5,3008.4,0.1666]
[1752538846688,8.35191557,3008.5,3008.4,0.1666]
[1752538847288,5.028,3008.5,3008.4,0.1666]
[1752538847498,5.05292759,3008.5,3008.4,0.1666]
[1752538847984,8.37684316,3008.5,3008.4,0.1666]
[1752538848188,8.35191557,3008.5,3008.4,0.1666]
[1752538848486,5.028,3008.5,3008.4,0.1666]
[1752538848787,8.37684316,3008.5,3008.4,0.1666]
[1752538848990,8.35191557,3008.5,3008.4,0.1666]
[1752538849882,5.028,3008.5,3008.4,0.1666]
[1752538850175,8.37684316,3008.5,3008.4,0.1666]
[1752538850356,8.35191557,3008.5,3008.4,0.1666]
[1752538851390,9.15731557,3008.5,3008.4,0.1666]
[1752538851785,10.40542873,3008.5,3008.4,0.1666]
[1752538870830,9.15731557,3008.5,3008.4,0.1666]
[1752538871834,8.35191557,3008.5,3008.4,0.1666]
[1752538872904,3.32591557,3008.5,3008.4,0.1666]
[1752538873107,8.37484316,3008.5,3008.4,0.1666]
[1752538873335,8.34991557,3008.5,3008.4,0.1666]
[1752538884335,3.32591557,3008.5,3008.4,0.1666]
[1752538884537,8.37484316,3008.5,3008.4,0.1666]
[1752538884884,8.34891557,3008.5,3008.4,0.1666]
[1752538885057,3.32591557,3008.5,3008.4,0.1666]
[1752538885256,8.37384316,3008.5,3008.4,0.1666]
[1752538885455,8.34891557,3008.5,3008.4,0.1666]
[1752538885653,3.32591557,3008.5,3008.4,0.1666]
[1752538885854,8.37384316,3008.5,3008.4,0.1666]
[1752538886055,8.34891557,3008.5,3008.4,0.1666]
[1752538889099,3.32591557,3008.5,3008.4,0.1666]
[1752538889403,8.37384316,3008.5,3008.4,0.1666]
[1752538889543,8.34891557,3008.5,3008.4,0.1666]
[1752538896352,0.002,3008.5,3008.4,0.1666]
[1752538896561,0.002,3008.5,3008.4,0.9994]
[1752538897078,5.025,3008.5,3008.4,0.9994]
[1752538897486,5.025,3008.5,3008.4,4.90269031]
[1752538900711,0.002,3008.5,3008.4,4.90269031]
[1752538901012,5.024,3008.5,3008.4,4.90269031]
[1752538908920,5.024,3008.5,3008.4,1.57866425]
[1752538909218,5.024,3008.5,3008.4,4.32342606]
[1752538909584,5.024,3008.5,3008.4,0.9994]
[1752538909781,5.024,3008.5,3008.4,4.32342606]
[1752538910520,5.024,3008.5,3008.4,0.9994]
[1752538911024,5.024,3008.5,3008.4,4.32342606]
[1752538911231,5.024,3008.5,3008.4,5.56418136]
[1752538912919,0.002,3008.5,3008.4,5.56418136]
[1752538913129,5.023,3008.5,3008.4,5.56418136]
[1752538914122,5.023,3008.5,3008.4,0.9994]
[1752538914327,5.023,3008.5,3008.4,4.32342606]
[1752538916203,0.002,3008.5,3008.4,4.32342606]
[1752538916502,5.023,3008.5,3008.4,4.32342606]
[1752538917025,5.023,3008.5,3008.4,0.9994]
[1752538917915,5.023,3008.5,3008.4,0.1666]
[1752538918226,8.84921557,3008.5,3008.4,0.1666]
[1752538918791,9.63381557,3008.5,3008.4,0.1666]
[1752538919005,9.63381557,3008.5,3008.4,0.001]
[1752538925964,4.61281557,3008.5,3008.4,0.001]
[1752538926134,8.87414316,3008.5,3008.4,0.001]
[1752538926466,8.84921557,3008.5,3008.4,0.001]
[1752538927125,8.84821557,3008.5,3008.4,0.001]
[1752538927762,5.022,3008.5,3008.4,0.001]
[1752538927972,0.002,3008.5,3008.4,3.49062606]
[1752538928284,5.023,3008.5,3008.4,3.49062606]
[1752538930283,5.023,3008.5,3008.4,0.1666]
[1752538932181,5.022,3008.5,3008.4,0.1666]
[1752538933801,5.022,3008.5,3008.4,3.49062606]
[1752538934470,5.022,3008.5,3008.4,0.1666]
[1752538935411,5.022,3008.5,3008.4,4.25302836]
[1752538936997,0.002,3008.5,3008.4,4.25302836]
[1752538937380,5.022,3008.5,3008.4,4.25302836]
[1752538941163,0.002,3008.5,3008.4,4.25302836]
[1752538941362,5.022,3008.5,3008.4,4.25302836]
[1752538943799,0.002,3008.5,3008.4,4.25302836]
[1752538943979,5.021,3008.5,3008.4,4.25302836]
[1752538945005,1e-08,3008.8,3008.7,14.68989461]
[1752538945192,0.002,3009.0,3008.9,10.41384562]
[1752538945573,0.002,3009.0,3008.9,10.57944562]
[1752538949098,0.002,3009.0,3008.9,10.82432334]
[1752538949299,0.002,3009.0,3008.9,13.23911409]
[1752538950625,0.002,3009.0,3008.9,17.99911409]
[1752538956913,0.002,3009.7,3009.5,4.65301109]
[1752538957089,1e-08,3009.6,3009.5,19.41301109]
[1752538957425,0.002,3009.7,3009.6,14.65290069]
[1752538957426,1e-08,3009.7,3009.6,14.65290069]
[1752538957598,0.002,3010.1,3010.0,4.63815913]
[1752538957825,0.002,3010.1,3010.0,15.15555365]
[1752538958026,1e-08,3010.1,3010.0,17.6375229]
[1752538960624,0.04,3011.9,3010.2,3.3220384]
[1752538960947,0.04,3011.9,3011.3,13.32082489]
[1752538962265,0.7683,3011.5,3010.8,0.8166]
[1752538962429,0.7683,3011.5,3011.3,3.32082489]
[1752538962621,5.7963,3011.5,3011.3,3.32082489]
[1752538963361,5.028,3011.5,3011.3,3.32082489]
[1752538964158,0.7683,3011.7,3011.3,3.32082489]
[1752538964452,5.029,3011.4,3011.2,3.32088451]
[1752538965247,5.029,3011.4,3011.2,3.56411886]
[1752538966648,5.029,3011.4,3011.3,3.32082489]
[1752538968132,0.002,3011.4,3011.3,4.09962489]
[1752538968349,0.002,3011.4,3011.3,5.42008359]
[1752538968718,0.002,3011.4,3011.3,15.42008359]
[1752538969751,0.002,3012.1,3012.0,3.87005312]
[1752538969955,0.002,3012.1,3012.0,20.81163036]
[1752538970371,0.002,3012.1,3012.0,15.08745843]
[1752538970733,0.002,3012.1,3012.0,15.25305843]
[1752538972639,0.002,3012.1,3012.0,20.97723036]
[1752538973373,0.002,3012.1,3012.0,21.51542195]
[1752538974240,0.002,3012.1,3012.0,5.25305843]
[1752538974579,0.002,3012.1,3012.0,13.90585896]
[1752538974778,0.002,3012.1,3012.0,1.10260531]
[1752538974981,0.002,3012.1,3012.0,4.42265843]
[1752538975145,0.002,3012.1,3012.0,14.42265843]
[1752538979408,0.002,3012.1,3012.0,0.1656]
[1752538980881,0.002,3012.1,3012.0,3.48565312]
[1752538981086,0.002,3012.1,3012.0,4.87825365]
[1752538981241,0.002,3012.1,3012.0,14.87825365]
[1752538981445,0.002,3012.1,3012.0,14.84505312]
[1752538981642,0.002,3012.1,3012.0,17.23399132]
[1752538983062,0.002,3012.1,3012.0,21.99399132]
[1752538985548,1e-08,3012.1,3012.0,21.99399132]
[1752538987298,1e-08,3012.1,3012.0,22.49776625]
[1752538987614,1e-08,3012.1,3012.0,21.99399132]
[1752538987770,1e-08,3012.1,3012.0,22.49776625]
[1752538987973,0.1656,3014.0,3012.5,1.329]
[1752538988291,0.8947225,3014.5,3012.8,14.81377153]
[1752538988292,5.038,3013.5,3012.8,14.81377153]
[1752538988496,5.038,3013.5,3012.8,20.07754646]
[1752538988812,0.7985,3013.6,3012.8,19.57377153]
[1752538989104,5.039,3013.5,3012.8,19.57377153]
[1752538989897,0.7985,3013.8,3012.8,19.57377153]
[1752538990058,5.039,3013.6,3012.8,19.57377153]
[1752538990458,0.7985,3013.8,3012.8,19.57377153]
[1752538990689,5.039,3013.6,3012.8,19.57377153]
[1752538991556,1e-08,3012.9,3012.8,19.57377153]
[1752538991878,1e-08,3012.9,3012.8,19.8255347]
[1752538992075,1e-08,3012.9,3012.8,22.79590217]
[1752538993617,1e-08,3012.9,3012.8,27.83290217]
[1752538993816,1e-08,3012.9,3012.8,22.79590217]
[1752538994460,1e-08,3013.4,3013.3,3.86862078]
[1752538994817,1e-08,3013.4,3013.3,19.68970698]
[1752538994964,1e-08,3013.4,3013.3,21.95736399]
[1752538995163,1e-08,3013.4,3013.3,22.12296399]
[1752538997007,1e-08,3013.4,3013.3,22.28861313]
[1752539001714,0.8663,3014.9,3014.8,3.31696961]
[1752539002012,0.8663,3014.9,3014.8,0.1656]
[1752539002164,0.8663,3014.9,3014.8,3.48256961]
[1752539003665,0.04,3014.9,3014.8,14.7125338]
[1752539004197,0.04,3014.9,3014.8,14.95711982]
[1752539009815,1e-08,3014.9,3014.8,14.95711982]
[1752539010340,1e-08,3014.9,3014.8,20.78601982]
[1752539011053,1e-08,3014.9,3014.8,26.48431746]
[1752539013032,1e-08,3014.9,3014.8,20.78601982]
[1752539017769,1e-08,3014.9,3014.8,15.75301982]
[1752539017939,1e-08,3014.9,3014.8,20.78801982]
[1752539020384,1e-08,3014.9,3014.8,20.78701982]
[1752539021541,1e-08,3014.9,3014.8,20.78601982]
[1752539022724,1e-08,3014.9,3014.8,21.25770878]
[1752539023068,0.04,3015.9,3015.8,3.86586975]
[1752539023378,0.04,3015.9,3015.8,14.5840539]
[1752539023592,0.04,3015.9,3015.8,14.7496539]
[1752539026508,0.04,3015.9,3015.8,15.5825539]
[1752539032406,8.732,3016.5,3016.4,3.86521018]
[1752539032615,0.7621,3016.8,3016.7,3.31488049]
[1752539033131,0.7621,3016.8,3016.7,3.48048049]
[1752539034024,0.7621,3016.8,3016.7,3.7881389]
[1752539034630,0.7621,3016.8,3016.7,3.72769936]
[1752539034793,0.7621,3016.8,3016.7,4.6186339]
[1752539035103,0.04,3016.9,3016.8,3.31477061]
[1752539035310,0.8003,3016.9,3016.8,0.30774868]
[1752539035687,0.8003,3016.9,3016.7,0.24721887]
[1752539035890,0.8003,3016.9,3016.1,0.55]
[1752539036130,0.8015,3016.8,3016.3,3.31527412]
[1752539036540,3.31478806,3016.8,3016.1,3.86552276]
[1752539036711,3.31478806,3016.8,3016.2,3.31535752]
[1752539036712,0.8302,3016.7,3016.2,3.31535752]
[1752539036912,0.8302,3016.5,3016.1,0.63812054]
[1752539037100,0.8302,3016.5,3016.1,10.25156826]
[1752539037304,0.8302,3016.5,3016.2,10.0]
[1752539037522,0.8302,3016.5,3016.1,10.25156826]
[1752539037523,3.31521912,3016.4,3016.1,0.25156826]
[1752539037848,0.8302,3016.5,3015.1,3.31663958]
[1752539037849,0.7905,3016.1,3015.1,3.31663958]
[1752539038016,0.7905,3015.9,3014.9,3.31685959]
[1752539038201,0.7905,3015.9,3015.5,13.31612868]
[1752539038403,0.7905,3015.9,3015.5,3.31612868]
[1752539039755,0.7905,3015.9,3015.5,0.55]
[1752539039965,0.8021,3015.8,3015.5,0.79756938]
[1752539040524,3.3160387,3015.7,3015.5,0.24756938]
[1752539040842,0.7999,3015.6,3014.8,0.001]
[1752539041040,0.7999,3015.6,3015.3,0.55]
[1752539041556,0.7999,3015.6,3015.2,10.0]
[1752539041758,5.8559,3015.5,3015.3,0.55]
[1752539041961,5.8559,3015.5,3015.2,0.24657492]
[1752539041962,0.8169,3015.4,3014.8,0.001]
[1752539042138,5.039,3015.5,3014.8,0.001]
[1752539042139,3.31641959,3015.3,3014.8,0.001]
[1752539042335,4.13348702,3015.2,3014.8,0.001]
[1752539042565,0.7852,3015.1,3014.8,0.551]
[1752539042738,5.041,3015.0,3014.8,0.802224]
[1752539043924,5.041,3015.0,3014.8,4.11911295]
[1752539044540,5.041,3015.0,3014.8,0.802224]
[1752539044979,5.041,3015.0,3014.8,4.119192]
[1752539045285,5.041,3015.0,3014.9,0.1656]
[1752539045646,0.7852,3015.1,3014.9,0.1656]
[1752539045846,5.04,3015.0,3014.9,0.1656]
[1752539049888,0.7852,3015.1,3014.9,0.1656]
[1752539050093,5.038,3015.0,3014.9,3.48241783]
[1752539051910,5.038,3015.0,3014.9,0.1656]
[1752539052111,5.038,3015.0,3014.9,3.48245959]
[1752539053486,0.7852,3015.1,3014.9,3.48245959]
[1752539053785,5.036,3015.0,3014.9,3.48245959]
[1752539054709,0.7852,3015.1,3014.9,3.48245959]
[1752539054912,5.036,3015.0,3014.9,3.48240058]
[1752539056194,5.036,3015.0,3014.9,0.1656]
[1752539056516,5.036,3015.0,3014.9,3.48245959]
[1752539059515,5.036,3015.0,3014.9,0.1656]
[1752539060910,5.036,3015.0,3014.9,3.48245959]
[1752539061776,5.032,3015.0,3014.9,3.48245959]
[1752539065427,0.7914,3015.4,3015.3,3.31641959]
[1752539065733,5.8224,3015.4,3015.2,3.31646407]
[1752539065946,5.8224,3015.4,3015.3,0.1656]
[1752539068332,0.1656,3016.0,3015.4,0.55]
[1752539068333,0.7803,3016.0,3015.4,0.55]
[1752539068633,5.036,3015.9,3015.6,3.31601989]
[1752539069001,5.036,3015.9,3015.8,3.48146975]
[1752539069427,5.036,3015.9,3015.8,0.1656]
[1752539069936,5.036,3015.9,3015.8,3.48146975]
[1752539070136,5.036,3015.9,3015.8,0.1656]
[1752539072209,10.09254829,3015.9,3015.8,0.1656]
[1752539072415,6.77678849,3015.9,3015.8,0.1656]
[1752539073736,0.8276,3015.9,3015.8,0.1656]
[1752539073934,5.8626,3015.9,3015.8,0.1656]
[1752539074237,0.8276,3015.9,3015.8,0.1656]
[1752539074438,5.036,3015.9,3015.8,3.48146975]
[1752539075737,8.7139,3016.1,3015.8,0.1656]
[1752539075936,5.036,3016.0,3015.5,0.55]
[1752539076336,5.036,3016.0,3015.6,3.31600755]
[1752539076642,5.036,3016.0,3015.9,0.1656]
[1752539079004,8.35164986,3016.0,3015.9,0.1656]
[1752539079250,5.036,3016.0,3015.9,0.1656]
[1752539083365,9.72663986,3016.0,3015.9,0.1656]
[1752539083525,6.41099,3016.0,3015.9,0.1656]
[1752539084208,5.036,3016.0,3015.9,0.1656]
[1752539085238,8.35164986,3016.0,3015.9,0.1656]
[1752539085553,9.17334986,3016.0,3015.9,0.1656]
[1752539085830,0.8217,3015.7,3015.2,8.07652661]
[1752539086030,0.8217,3015.7,3015.6,0.1656]
[1752539086337,9.1696797,3015.7,3015.6,0.1656]
[1752539086535,5.8537,3015.7,3015.6,0.1656]
[1752539086939,0.8217,3015.7,3015.6,0.1656]
[1752539087119,5.8547,3015.7,3015.6,0.1656]
[1752539087322,9.1706797,3015.7,3015.6,0.1656]
[1752539089062,5.8547,3015.7,3015.6,0.1656]
[1752539089662,5.8537,3015.7,3015.6,0.1656]
[1752539090140,9.1696797,3015.7,3015.6,0.1656]
[1752539090641,0.8217,3015.7,3015.6,0.1656]
[1752539090841,5.8527,3015.7,3015.6,0.1656]
[1752539091152,5.031,3015.7,3015.6,0.1656]
[1752539091385,0.8066,3015.9,3015.6,0.1656]
[1752539091386,0.8066,3015.9,3015.6,3.48166191]
[1752539091546,5.031,3015.8,3015.7,3.31589404]
[1752539091739,5.031,3015.8,3015.7,0.1656]
[1752539092192,0.002,3016.0,3015.7,0.1656]
[1752539092193,0.002,3016.0,3015.8,3.31582606]
[1752539092351,5.032,3015.9,3015.7,0.1656]
[1752539092553,5.032,3015.9,3015.7,3.31592157]
[1752539092856,5.032,3015.9,3015.8,0.1656]
[1752539095367,5.03,3015.9,3015.8,0.1656]
[1752539097684,5.03,3015.9,3015.8,0.16203199]
[1752539100282,0.002,3016.0,3015.9,3.3157598]
[1752539100489,5.03,3016.0,3015.8,0.16203199]
[1752539100785,5.03,3016.0,3015.8,3.47782151]
[1752539101461,0.002,3016.0,3015.9,3.3157598]
[1752539101665,0.002,3016.0,3015.8,3.47789128]
[1752539101893,5.027,3015.9,3015.8,3.47789128]
[1752539102299,5.027,3015.9,3015.8,0.16203199]
[1752539102692,5.027,3015.9,3015.8,3.47790174]